{"text_format":"1","workbook":"xlsx","n_sheets":9,"sheets":["Starting...","Membership Summary Selection","CMEG Seat and Share Prices","Sheet1","CME Clearing Member","CBOT Clearing Member","NYMEX Clearing Member","COMEX Clearing Member","CMEG App. and Transfer Fees"],"not_rendered":{"charts":0,"images":1,"macros":1,"external_links":0,"defined_names":11,"comments":0,"pivot_tables":0},"unopened":[],"bounds":{"document_bytes":16777216,"sheet_cells":100000,"rows_first":2000,"rows_last":500,"rows_between":2000,"halvings":0,"cell_chars":16384,"cell_head_chars":4096},"cells_cut":0,"cells_raw":0,"read":"whole","date_system":"1900"}

{"sheet":"Starting...","index":0,"n_rows":0,"n_cols":0,"rows_kept":0,"cut":false,"hidden":true,"merged":[]}

{"sheet":"Membership Summary Selection","index":1,"n_rows":16,"n_cols":7,"rows_kept":16,"cut":false,"hidden":false,"merged":[[2,1,5,10],[14,1,14,5],[15,1,15,5],[7,1,7,5],[10,1,10,5],[13,1,13,5],[8,1,8,5],[11,1,11,5]]}
[null,"CME Group Clearing Membership - Membership Summary Form"]
[]
[null,"Thank you for your interest in CME Group Clearing Membership. You have selected the following clearing membership option(s) for review. If you would like to make any changes to your selection(s), please press the \"Update\" button below.  "]
[]
[]
[]
[]
[null,"CME ",null,null,null,null,"Selected"]
[null,"Clearing Membership"]
[]
[null,"CBOT",null,null,null,null,"Selected"]
[null,"Clearing Membership"]
[]
[null,"NYMEX/COMEX",null,null,null,null,"Selected"]
[null,"NYMEX Clearing Membership"]
[null,"COMEX Clearing Membership"]

{"sheet":"CMEG Seat and Share Prices","index":2,"n_rows":44,"n_cols":15,"rows_kept":44,"cut":false,"hidden":false,"merged":[[28,31,28,33],[28,35,28,37],[28,39,28,41],[28,91,28,93],[28,11,28,13],[28,15,28,17],[28,23,28,25],[28,63,28,65],[28,19,28,21],[35,19,35,21],[28,95,28,97],[29,11,29,14],[29,15,29,18],[29,19,29,22],[29,23,29,26],[29,27,29,30],[29,31,29,34],[28,67,28,69],[28,71,28,73],[28,75,28,77],[28,79,28,81],[28,83,28,85],[28,87,28,89],[29,91,29,94],[28,27,28,29],[35,15,35,17],[29,95,29,98],[30,0,30,5],[35,6,35,8],[35,11,35,13],[29,59,29,62],[29,63,29,66],[29,67,29,70],[29,71,29,74],[29,75,29,78],[29,79,29,82],[29,35,29,38],[29,39,29,42],[35,35,35,37],[35,31,35,33],[35,87,35,89],[35,91,35,93],[52,0,52,5],[17,1,17,2],[29,83,29,86],[29,87,29,90],[29,43,29,46],[29,47,29,50],[29,51,29,54],[29,55,29,58],[28,43,28,45],[28,47,28,49],[28,51,28,53],[28,55,28,57],[28,59,28,61],[23,7,23,9],[43,0,51,5],[35,95,35,97],[37,0,37,4],[35,63,35,65],[35,67,35,69],[35,71,35,73],[35,75,35,77],[35,79,35,81],[35,83,35,85],[35,39,35,41],[35,43,35,45],[35,47,35,49],[35,51,35,53],[35,55,35,57],[35,59,35,61],[35,23,35,25],[35,27,35,29],[17,3,17,4],[17,0,18,0],[23,0,23,5],[12,0,12,1],[8,1,8,3],[14,1,14,5],[10,0,10,4],[16,0,16,4]]}
["CME Group Exchange Seat and Share Prices "]
[]
[]
[]
[]
[null,null,null,null,null,null,null,null,null,null,null,null,null,null," "]
[null," ",null,null,null," ",null,null,null,null,null,null,null,null," "]
["Current Date:",{"$f":"CMEG_Seat_and_Share_Prices[[#This Row],[Column2]]","v":"2025-12-19"},null,null,null," "," "," "]
["Share Price Link","http://investor.cmegroup.com/investor-relations/index.cfm",null,null,null,null," ","  "," "]
[null,null,null,null,null,null,null," "," "]
["CME Group Share Quote 1",null,null,null,null,null," "," "," "]
["Description",null,"Quote","Date","Time",null," "," "," "," ",null," "," "]
["CME Group Stock Quote  ",null,{"$f":"CMEG_Seat_and_Share_Prices[[#This Row],[Column3]]","v":266.02999999999997},{"$f":"CMEG_Seat_and_Share_Prices[[#This Row],[Column4]]","v":"2025-12-18"},{"$f":"CMEG_Seat_and_Share_Prices[[#This Row],[Column5]]","v":"04:00 PM (EST)"},null,null,null,null," ",null," "," "]
[null,null," ",null,null,null,null," "]
["Seat Price Link","http://www.cmegroup.com/company/membership/membership-and-lease-pricing.html",null,null,null,null,null," "," "," "]
[null,null,null,null,null,null,null,null," "," ",null,null,null," "," "]
["CME Group Exchange Seat Prices - As of Date and Time 2"]
["Exchange","Seat Prices as of: ",null,"Lease Prices as of: "]
[null,"Date","Time","Date","Time",null,null,null," ",null," "]
["CME",{"$f":"CMEG_Seat_and_Share_Prices[[#This Row],[Column2]]","v":"2025-12-18"},{"$f":"CMEG_Seat_and_Share_Prices[[#This Row],[Column3]]","v":"4:00 PM (CST)"},{"$f":"CMEG_Seat_and_Share_Prices[[#This Row],[Column4]]","v":"2025-12-18"},{"$f":"CMEG_Seat_and_Share_Prices[[#This Row],[Column5]]","v":"4:00 PM (CST)"},null,null,null,null,null," "]
["CBOT",{"$f":"CMEG_Seat_and_Share_Prices[[#This Row],[Column2]]","v":"2025-12-18"},{"$f":"CMEG_Seat_and_Share_Prices[[#This Row],[Column3]]","v":"4:00 PM (CST)"},{"$f":"CMEG_Seat_and_Share_Prices[[#This Row],[Column4]]","v":"2025-12-18"},{"$f":"CMEG_Seat_and_Share_Prices[[#This Row],[Column5]]","v":"4:00 PM (CST)"}]
["NYMEX/COMEX",{"$f":"CMEG_Seat_and_Share_Prices[[#This Row],[Column2]]","v":"2025-12-18"},{"$f":"CMEG_Seat_and_Share_Prices[[#This Row],[Column3]]","v":"4:00 PM (CST)"},{"$f":"CMEG_Seat_and_Share_Prices[[#This Row],[Column4]]","v":"2025-12-18"},{"$f":"CMEG_Seat_and_Share_Prices[[#This Row],[Column5]]","v":"4:00 PM (CST)"}]
[null," ",null," "]
["CME Exchange Seat and Lease Prices 3  ",null,null,null,null,null,null,"CME Last 5 New Lease Prices "]
["Division","Bid","Offer","Last Sales Price","Last Sales Date","Monthly Lease Price ",null,"CME","IMM","IOM"]
["CME ",{"$f":"CMEG_Seat_and_Share_Prices[[#This Row],[Column2]]","v":375000},{"$f":"CMEG_Seat_and_Share_Prices[[#This Row],[Column3]]","v":599000},{"$f":"CMEG_Seat_and_Share_Prices[[#This Row],[Column4]]","v":380000},{"$f":"CMEG_Seat_and_Share_Prices[[#This Row],[Column5]]","v":"2025-12-08"},{"$f":"CMEG_Seat_and_Share_Prices[[#This Row],[Column6]]","v":2580},null,{"$f":"CMEG_Seat_and_Share_Prices[[#This Row],[Column8]]","v":2600},{"$f":"CMEG_Seat_and_Share_Prices[[#This Row],[Column9]]","v":800},{"$f":"CMEG_Seat_and_Share_Prices[[#This Row],[Column10]]","v":250}," "]
["IMM",{"$f":"CMEG_Seat_and_Share_Prices[[#This Row],[Column2]]","v":110000},{"$f":"CMEG_Seat_and_Share_Prices[[#This Row],[Column3]]","v":229500},{"$f":"CMEG_Seat_and_Share_Prices[[#This Row],[Column4]]","v":126000},{"$f":"CMEG_Seat_and_Share_Prices[[#This Row],[Column5]]","v":"2025-12-04"},{"$f":"CMEG_Seat_and_Share_Prices[[#This Row],[Column6]]","v":820},null,{"$f":"CMEG_Seat_and_Share_Prices[[#This Row],[Column8]]","v":2600},{"$f":"CMEG_Seat_and_Share_Prices[[#This Row],[Column9]]","v":800},{"$f":"CMEG_Seat_and_Share_Prices[[#This Row],[Column10]]","v":250}]
["IOM",{"$f":"CMEG_Seat_and_Share_Prices[[#This Row],[Column2]]","v":29000},{"$f":"CMEG_Seat_and_Share_Prices[[#This Row],[Column3]]","v":40000},{"$f":"CMEG_Seat_and_Share_Prices[[#This Row],[Column4]]","v":32500},{"$f":"CMEG_Seat_and_Share_Prices[[#This Row],[Column5]]","v":"2025-12-18"},{"$f":"CMEG_Seat_and_Share_Prices[[#This Row],[Column6]]","v":260},null,{"$f":"CMEG_Seat_and_Share_Prices[[#This Row],[Column8]]","v":2600},{"$f":"CMEG_Seat_and_Share_Prices[[#This Row],[Column9]]","v":800},{"$f":"CMEG_Seat_and_Share_Prices[[#This Row],[Column10]]","v":250}]
["GEM ",{"$f":"CMEG_Seat_and_Share_Prices[[#This Row],[Column2]]","v":3200},{"$f":"CMEG_Seat_and_Share_Prices[[#This Row],[Column3]]","v":10000},{"$f":"CMEG_Seat_and_Share_Prices[[#This Row],[Column4]]","v":4000},{"$f":"CMEG_Seat_and_Share_Prices[[#This Row],[Column5]]","v":"2025-11-25"},null,null,{"$f":"CMEG_Seat_and_Share_Prices[[#This Row],[Column8]]","v":2600},{"$f":"CMEG_Seat_and_Share_Prices[[#This Row],[Column9]]","v":900},{"$f":"CMEG_Seat_and_Share_Prices[[#This Row],[Column10]]","v":250}]
[null,null,null,null,null,null,null,{"$f":"CMEG_Seat_and_Share_Prices[[#This Row],[Column8]]","v":2500},{"$f":"CMEG_Seat_and_Share_Prices[[#This Row],[Column9]]","v":800},{"$f":"CMEG_Seat_and_Share_Prices[[#This Row],[Column10]]","v":300}]
["CBOT Exchange Seat and Lease Prices 3 ",null,null,null,null,null,null,{"$f":"AVERAGE(H26:H30)","v":2580},{"$f":"AVERAGE(I26:I30)","v":820},{"$f":"AVERAGE(J26:J30)","v":260}]
["Division","Bid","Offer","Last Sales Price","Last Sales Date","Monthly Lease Price "]
["Full (B1)",{"$f":"CMEG_Seat_and_Share_Prices[[#This Row],[Column2]]","v":205500},{"$f":"CMEG_Seat_and_Share_Prices[[#This Row],[Column3]]","v":297000},{"$f":"CMEG_Seat_and_Share_Prices[[#This Row],[Column4]]","v":220000},{"$f":"CMEG_Seat_and_Share_Prices[[#This Row],[Column5]]","v":"2025-12-16"},{"$f":"CMEG_Seat_and_Share_Prices[[#This Row],[Column6]]","v":1661.74}]
["AM (B2)",{"$f":"CMEG_Seat_and_Share_Prices[[#This Row],[Column2]]","v":42000},{"$f":"CMEG_Seat_and_Share_Prices[[#This Row],[Column3]]","v":65000},{"$f":"CMEG_Seat_and_Share_Prices[[#This Row],[Column4]]","v":44000},{"$f":"CMEG_Seat_and_Share_Prices[[#This Row],[Column5]]","v":"2025-12-01"},{"$f":"CMEG_Seat_and_Share_Prices[[#This Row],[Column6]]","v":268.17}]
["IDEM (B4)",{"$f":"CMEG_Seat_and_Share_Prices[[#This Row],[Column2]]","v":1800},{"$f":"CMEG_Seat_and_Share_Prices[[#This Row],[Column3]]","v":5000},{"$f":"CMEG_Seat_and_Share_Prices[[#This Row],[Column4]]","v":2300},{"$f":"CMEG_Seat_and_Share_Prices[[#This Row],[Column5]]","v":"2025-11-04"}," "]
["COM (B5)",{"$f":"CMEG_Seat_and_Share_Prices[[#This Row],[Column2]]","v":4000},{"$f":"CMEG_Seat_and_Share_Prices[[#This Row],[Column3]]","v":4700},{"$f":"CMEG_Seat_and_Share_Prices[[#This Row],[Column4]]","v":3300},{"$f":"CMEG_Seat_and_Share_Prices[[#This Row],[Column5]]","v":"2025-12-16"}]
[]
["NYMEX/COMEX Exchange Seat Prices  "]
["Division","Bid","Offer","Last Sales Price","Last Sales Date"]
["NYMEX",{"$f":"CMEG_Seat_and_Share_Prices[[#This Row],[Column2]]","v":170000},{"$f":"CMEG_Seat_and_Share_Prices[[#This Row],[Column3]]","v":210000},{"$f":"CMEG_Seat_and_Share_Prices[[#This Row],[Column4]]","v":190000},{"$f":"CMEG_Seat_and_Share_Prices[[#This Row],[Column5]]","v":"2025-11-20"}]
["COMEX",{"$f":"CMEG_Seat_and_Share_Prices[[#This Row],[Column2]]","v":70000},{"$f":"CMEG_Seat_and_Share_Prices[[#This Row],[Column3]]","v":107000},{"$f":"CMEG_Seat_and_Share_Prices[[#This Row],[Column4]]","v":91000},{"$f":"CMEG_Seat_and_Share_Prices[[#This Row],[Column5]]","v":"2025-12-02"}]
["COMEX (Options Only)",{"$f":"CMEG_Seat_and_Share_Prices[[#This Row],[Column2]]","v":500},{"$f":"CMEG_Seat_and_Share_Prices[[#This Row],[Column3]]","v":4000},{"$f":"CMEG_Seat_and_Share_Prices[[#This Row],[Column4]]","v":4000},{"$f":"CMEG_Seat_and_Share_Prices[[#This Row],[Column5]]","v":"2025-06-26"}]
[]
["1CME Group stock quote is based on prices as of the indicated date/time as listed on CME Group's website.  Please note stock quotes may be delayed at least 20 minutes.  For most current CME Group stock quote, please refer to www.investor.cmegroup.com/investor-relations/index.cfm.\n\n2CME Group Exchange seat prices are based on the offer price as of the indicated date/time per CME Group's website.  For a listing of most current and historical seat prices, please refer to www.cmegroup.com/company/membership/membership-and-lease-pricing.html.\n\n3CME lease prices are based on the average of the five most recent \"Reported Lease Information - New Leases\" per CME Group's website.  CBOT lease prices are based on the most recent \"Month-End Rental Dollar Amount\" per CME Group's website.   For most current lease prices, please refer to http://www.cmegroup.com/company/membership/membership-and-lease-pricing.html.\n\n\n\n"]

{"sheet":"Sheet1","index":3,"n_rows":44,"n_cols":99,"rows_kept":44,"cut":false,"hidden":true,"merged":[]}
["CME Group Exchange Seat and Share Prices ","Column2","Column3","Column4","Column5","Column6","Column7","Column8","Column9","Column10","Column11","Column12","Column13","Column14","Column15","Column16","Column17","Column18","Column19","Column20","Column21","Column22","Column23","Column24","Column25","Column26","Column27","Column28","Column29","Column30","Column31","Column32","Column33","Column34","Column35","Column36","Column37","Column38","Column39","Column40","Column41","Column42","Column43","Column44","Column45","Column46","Column47","Column48","Column49","Column50","Column51","Column52","Column53","Column54","Column55","Column56","Column57","Column58","Column59","Column60","Column61","Column62","Column63","Column64","Column65","Column66","Column67","Column68","Column69","Column70","Column71","Column72","Column73","Column74","Column75","Column76","Column77","Column78","Column79","Column80","Column81","Column82","Column83","Column84","Column85","Column86","Column87","Column88","Column89","Column90","Column91","Column92","Column93","Column94","Column95","Column96","Column97","Column98","Column99"]
[]
[]
[]
[]
[null,null,null,null,null,null,null,null,null,null,null,null,null,null," "]
[null," ",null,null,null," ",null,null,null,null,null,null,null,null," "]
["Current Date:","2025-12-19",null,null,null," "," "," "]
["Share Price Link","https://cmegroup.com/investor-relations.html",null,null,null,null," ","  "," "]
[null,null,null,null,null,null,null," "," "]
["CME Group Share Quote 1",null,null,null,null,null," "," "," "]
["Description",null,"Quote","Date","Time",null," "," "," "," ",null," "," "]
["CME Group Stock Quote  ",null,266.02999999999997,"2025-12-18","04:00 PM (EST)",null,null,null,null," ",null," "," "]
[null,null," "," ",null,null,null," "]
["Seat Price Link","http://www.cmegroup.com/company/membership/membership-and-lease-pricing.html",null,null,null,null,null," "," "," "]
[null,null,null,null,null,null,null,null," "," ",null,null,null," "," "]
["CME Group Exchange Seat Prices - As of Date and Time 2"]
["Exchange","Seat Prices as of: ",null,"Lease Prices as of: "]
[null,"Date","Time","Date","Time",null,null,null," ",null," "]
["CME","2025-12-18","4:00 PM (CST)","2025-12-18","4:00 PM (CST)",null,null,null,null,null," "]
["CBOT","2025-12-18","4:00 PM (CST)","2025-12-18","4:00 PM (CST)"]
["NYMEX/COMEX","2025-12-18","4:00 PM (CST)","2025-12-18","4:00 PM (CST)"]
[null," ",null," "]
["CME Exchange Seat and Lease Prices 3  ",null,null,null,null,null,null,"CME Last 5 New Lease Prices "]
["Division","Bid","Offer","Last Sales Price","Last Sales Date","Monthly Lease Price ",null,"CME","IMM","IOM"]
["CME ",375000,599000,380000,45999,2580,null,2600,800,250," "]
["IMM",110000,229500,126000,45995,820,null,2600,800,250]
["IOM",29000,40000,32500,46009,260,null,2600,800,250]
["GEM ",3200,10000,4000,45986,null,null,2600,900,250]
[null,null,null,null,null,null,null,2500,800,300]
["CBOT Exchange Seat and Lease Prices 3 ",null,null,null,null,null,null,2580,820,260]
["Division","Bid","Offer","Last Sales Price","Last Sales Date","Monthly Lease Price "]
["Full (B1)",205500,297000,220000,46007,1661.74]
["AM (B2)",42000,65000,44000,45992,268.17]
["IDEM (B4)",1800,5000,2300,45965]
["COM (B5)",4000,4700,3300,46007]
[]
["NYMEX/COMEX Exchange Seat Prices  "]
["Division","Bid","Offer","Last Sales Price","Last Sales Date"]
["NYMEX",170000,210000,190000,45981]
["COMEX",70000,107000,91000,45993]
["COMEX (Options Only)",500,4000,4000,45834]
[null,3200,10000,4000,45986]
["1CME Group stock quote is based on prices as of the indicated date/time as listed on CME Group's website.  Please note stock quotes may be delayed at least 20 minutes.  For most current CME Group stock quote, please refer to www.investor.cmegroup.com/investor-relations/index.cfm.\n\n2CME Group Exchange seat prices are based on the offer price as of the indicated date/time per CME Group's website.  For a listing of most current and historical seat prices, please refer to www.cmegroup.com/company/membership/membership-and-lease-pricing.html.\n\n3CME lease prices are based on the average of the five most recent \"Reported Lease Information - New Leases\" per CME Group's website.  CBOT lease prices are based on the most recent \"Month-End Rental Dollar Amount\" per CME Group's website.   For most current lease prices, please refer to http://www.cmegroup.com/company/membership/membership-and-lease-pricing.html.\n\n\n\n"]

{"sheet":"CME Clearing Member","index":4,"n_rows":45,"n_cols":5,"rows_kept":45,"cut":false,"hidden":false,"merged":[[37,6,40,9],[41,1,41,2],[39,1,40,4],[44,1,44,3],[42,1,42,4],[13,1,13,4],[24,1,24,4],[14,6,15,6],[13,6,13,9],[14,7,14,9],[19,1,19,3],[29,1,29,4],[32,1,32,3],[36,1,36,3],[37,1,37,3],[30,1,30,3],[31,1,31,3],[35,1,35,4]]}
[null,"CME Clearing Member Firm Membership"]
[null,"Seat and Share Cost Estimates as of 1: ",null,null,{"$f":"'CMEG Seat and Share Prices'!B8","v":"2025-12-19"}]
[]
[]
[]
[]
[]
[]
[]
[]
[]
[]
[]
[null," Seat Cost 2"]
[null,"Seat Division","Quantity ","Offer Price","Seat Cost"]
[null,"CME",2,{"$f":"'CMEG Seat and Share Prices'!C26","v":599000},{"$f":"C16*D16","v":1198000}]
[null,"IMM",2,{"$f":"'CMEG Seat and Share Prices'!C27","v":229500},{"$f":"D17*C17","v":459000}]
[null,"IOM",2,{"$f":"'CMEG Seat and Share Prices'!C28","v":40000},{"$f":"D18*C18","v":80000}]
[null,"GEM",1,{"$f":"'CMEG Seat and Share Prices'!C29","v":10000},{"$f":"D19*C19","v":10000}]
[null,"Total Cost for CME Clearing Membership:",null,null,{"$f":"SUM(E16:E19)","v":1747000}]
[]
[]
[null,"Additional requirements to receive equity member rates on proprietary trading:"]
[]
[null,"Share Cost"]
[null,"Type of Shares","Quantity","Stock Price","Share Cost"]
[null,"CME Group",20000,{"$f":"'CMEG Seat and Share Prices'!C13","v":266.02999999999997},{"$f":"ROUND(D27,0)*C27","v":5320000}]
[]
[]
[null,"OPTION 1 - Purchase Seats and Shares"]
[null,"Total Seat Cost",null,null,{"$f":"+E20","v":1747000}]
[null,"Total Share Cost",null,null,{"$f":"E27","v":5320000}]
[null,"Total Cost for CME Clearing Membership + Equity Member Rates:",null,null,{"$f":"SUM(E31:E32)","v":7067000}]
[]
[]
[null,"OPTION 2 - Purchase Seats Plus Monthly Subscription Rate 3"]
[null,"Total Seat Cost",null,null,{"$f":"E20","v":1747000}]
[null,"Total Monthly Equity Member Subscription Rate Program (EMSRP)",null,null,12500]
[]
[null,"1 Seat and share prices provided are based on prices obtained from CME Group's website as of a specified date/time.  For specific information on seat and share prices, please refer to CME Seat and Share Prices link below:"]
[]
[null,"CME Seat and Share Prices"]
[null,"2 Seat cost does not include applicable membership transfer fees.  Refer to Application and Transfer Fee Schedule tab for additional details. "]
[null,"3 For further information on the Subscription Rate Program, please refer to the following link: "]
[null,"www.cmegroup.com/subscriptionrateprogram"]

{"sheet":"CBOT Clearing Member","index":5,"n_rows":60,"n_cols":5,"rows_kept":60,"cut":false,"hidden":false,"merged":[[23,6,23,9],[24,6,25,6],[24,7,25,7],[24,8,25,8],[24,9,25,9],[54,6,59,9],[47,1,47,3],[51,1,51,3],[59,1,59,3],[57,1,57,4],[48,1,48,3],[15,1,15,4],[18,1,18,3],[26,1,26,3],[54,1,55,4],[56,1,56,2],[46,1,46,4],[23,1,23,4],[31,1,31,4],[36,1,36,4],[37,1,37,3],[38,1,38,3],[39,1,39,3],[41,1,41,3],[42,1,42,3],[43,1,43,3]]}
[null,"CBOT Clearing Member Firm Membership"]
[null,"Seat and Share Cost Estimates as of 1:  ",null,null,{"$f":"'CMEG Seat and Share Prices'!B8","v":"2025-12-19"}]
[]
[]
[]
[]
[]
[]
[]
[]
[]
[]
[]
[null,"Clearing FCM:"]
[]
[null,"Seat Cost 2"]
[null,"Seat Division","Quantity","Offer Price","Seat Cost"]
[null,"Full",2,{"$f":"'CMEG Seat and Share Prices'!C33","v":297000},{"$f":"D18*C18","v":594000}]
[null,"Total Cost for CBOT Clearing FCM Membership:",null,null,{"$f":"E18","v":594000}]
[]
[]
[null,"Clearing Non-FCM:"]
[]
[null,"Seat Cost 1"]
[null,"Seat Division","Quantity","Offer Price","Seat Cost"]
[null,"Full",1,{"$f":"'CMEG Seat and Share Prices'!C33","v":297000},{"$f":"D26*C26","v":297000}]
[null,"Total Cost for CBOT Clearing Non-FCM Membership:",null,null,{"$f":"E26","v":297000}]
[]
[]
[null,"Additional requirements to receive equity member rates on proprietary trading:"]
[]
[null,"Share Cost"]
[null,"Type of Shares","Quantity","Stock Price","Share Cost"]
[null,"CME Group",{"$f":"20000","v":20000},{"$f":"'CMEG Seat and Share Prices'!C13","v":266.02999999999997},{"$f":"ROUND(D34,0)*C34","v":5320000}]
[]
[]
[null,"OPTION 1:  Purchase Seat(s) and Shares 2"]
[null,"Total Seat Cost (FCM)",null,null,{"$f":"E19","v":594000}]
[null,"Total Share Cost",null,null,{"$f":"E34","v":5320000}]
[null,"Total Cost for CBOT Clearing FCM Membership + Equity Member Rates:",null,null,{"$f":"SUM(E38:E39)","v":5914000}]
[]
[null,"Total Seat Cost (Non-FCM)",null,null,{"$f":"E26","v":297000}]
[null,"Total Share Cost",null,null,{"$f":"E34","v":5320000}]
[null,"Total Cost for CBOT Clearing Non-FCM Membership + Equity Member Rates:",null,null,{"$f":"SUM(E42:E43)","v":5617000}]
[]
[]
[null,"OPTION 2 - Purchase Seat(s) Plus Monthly Subscription Rate 3"]
[null,"Total Seat Cost (FCM)",null,null,{"$f":"E19","v":594000}]
[null,"Total Monthly Equity Member Subscription Rate Program (EMSRP)",null,null,12500]
[]
[null,"Total Seat Cost (Non-FCM)",null,null,{"$f":"E27","v":297000}]
[null,"Total Monthly Equity Member Subscription Rate Program (EMSRP)",null,null,12500]
[]
[]
[null,"1 Seat and share prices provided are based on prices obtained from CME Group's website as of a specified date/time.  For specific information on seat and share prices, please refer to CME Seat and Share Prices link below:"]
[]
[null,"CBOT Seat and Share Prices"]
[null,"2 Seat cost does not include applicable membership transfer fees.  Refer to Application and Transfer Fee Schedule tab for additional details. "]
[null,"3 For further information on the Subscription Rate Program, please refer to the following link: "]
[null,"www.cmegroup.com/subscriptionrateprogram"]

{"sheet":"NYMEX Clearing Member","index":6,"n_rows":43,"n_cols":5,"rows_kept":43,"cut":false,"hidden":false,"merged":[[37,1,38,4],[41,1,41,4],[40,1,40,4],[28,1,28,3],[29,1,29,3],[32,1,32,4],[33,1,33,3],[34,1,34,3],[20,6,22,9],[16,1,16,3],[42,1,42,3],[4,1,4,2],[5,1,5,2],[6,1,6,2],[13,1,13,4],[13,6,13,9],[39,1,39,2],[14,6,15,6],[14,7,15,7],[14,8,15,8],[14,9,15,9],[19,1,19,4],[26,1,26,4],[27,1,27,3]]}
[null,"NYMEX Clearing Member Firm Membership"]
[null,"Seat and Share Cost Estimates as of 1: ",null,null,{"$f":"'CMEG Seat and Share Prices'!B8","v":"2025-12-19"}]
[]
[]
[]
[]
[]
[]
[]
[]
[]
[]
[]
[null,"Seat Cost 2"]
[null,"Seat Division","Quantity","Offer Price","Seat Cost"]
[null,"NYMEX",2,{"$f":"'CMEG Seat and Share Prices'!C40","v":210000},{"$f":"D16*C16","v":420000}]
[null,"Total Cost for NYMEX Clearing Membership:",null,null,{"$f":"E16","v":420000}]
[]
[]
[null,"Share Cost"]
[null,"Type of Shares","Quantity","Stock Price","Share Cost"]
[null,"CME Group",20000,{"$f":"'CMEG Seat and Share Prices'!C13","v":266.02999999999997},{"$f":"ROUND(D22,0)*C22","v":5320000}]
[]
[]
[null,"Additional requirements to receive equity member rates on proprietary trading:"]
[]
[null,"OPTION 1:  Purchase Seats and Shares"]
[null,"Total Seat Cost",null,null,{"$f":"E16","v":420000}]
[null,"Total Share Cost",null,null,{"$f":"E22","v":5320000}]
[null,"Total Cost for NYMEX Clearing Membership + Equity Member Rates:",null,null,{"$f":"SUM(E28:E29)","v":5740000}]
[]
[]
[null,"OPTION 2: Purchase Seats Plus Monthly Subscription Rate 3"]
[null,"Total Seat Cost",null,null,{"$f":"E16","v":420000}]
[null,"Total Monthly Equity Member Subscription Rate",null,null,12500]
[]
[]
[null,"1 Seat and share prices provided are based on prices obtained from CME Group's website as of a specified date/time.  For specific information on seat and share prices, please refer to NYMEX/COMEX Seat and Share Prices link below:\n "]
[]
[null,"NYMEX/COMEX Seat and Share Prices"]
[null,"2 Seat cost does not include applicable membership transfer fees.  Refer to Application and Transfer Fee Schedule tab for additional details. "]
[null,"3 For further information on the Subscription Rate Program, please refer to the following link: "]
[null,"www.cmegroup.com/subscriptionrateprogram"]

{"sheet":"COMEX Clearing Member","index":7,"n_rows":18,"n_cols":5,"rows_kept":18,"cut":false,"hidden":false,"merged":[[17,1,17,4],[13,6,13,9],[16,1,16,2],[14,1,15,4],[8,6,8,9],[9,8,10,8],[9,9,10,9],[11,1,11,3],[1,1,1,2],[6,1,6,2],[8,1,8,4],[9,6,10,6],[9,7,10,7]]}
[null,"COMEX Clearing Member Firm Membership"]
[null,"Seat Cost Estimates as of 1: ",null,null,{"$f":"'CMEG Seat and Share Prices'!B8","v":"2025-12-19"}]
[]
[]
[]
[]
[]
[]
[null,"Seat Cost 2"]
[null,"Seat Division","Quantity ","Offer Price","Seat Cost"]
[null,"COMEX Full",2,{"$f":"'CMEG Seat and Share Prices'!C41","v":107000},{"$f":"C11*D11","v":214000}]
[null,"Total Cost for COMEX Clearing Membership:",null,null,{"$f":"E11","v":214000}]
[]
[]
[null,"1 Seat prices provided are based on prices obtained from CME Group's website as of a specified date/time.  For specific information on seat prices, please refer to NYMEX/COMEX Seat and Share Prices link below:\n "]
[]
[null,"NYMEX/COMEX Seat and Share Prices"]
[null,"2 Seat cost does not include applicable membership transfer fees.  Refer to Application and Transfer Fee Schedule tab for additional details. "]

{"sheet":"CMEG App. and Transfer Fees","index":8,"n_rows":17,"n_cols":5,"rows_kept":17,"cut":false,"hidden":false,"merged":[[26,1,26,4],[27,1,27,4],[28,1,28,4],[16,1,22,4],[2,1,2,4],[11,1,11,4],[6,1,6,4]]}
[null,"CME Group Application and Transfer Fee Schedule"]
[]
[null,"CME Exchange"]
[null,"Clearing Membership Type","Application Fee 1, 2","Additional Transfer Fee 3","Total Fee"]
[null,"CME Clearing Member Firm",2000,1800,3800]
[]
[null,"CBOT Exchange"]
[null,"Clearing Membership Type","Application Fee 1, 2","Additional Transfer Fee 3","Total Fee"]
[null,"CBOT Clearing FCM Member Firm",2000,300,2300]
[null,"CBOT Clearing Non-FCM Member Firm",2000,0,2000]
[]
[null,"NYMEX/COMEX Exchange"]
[null,"Clearing Membership Type","Application Fee 1, 2","Additional Transfer Fee 3","Total Fee"]
[null,"NYMEX Clearing Member Firm",2000,300,2300]
[null,"COMEX Clearing Member Firm",2000,300,2300]
[]
[null,"1 The Application fee includes the Transfer Fee for one of the required seats purchased by the applicant.  \n\n2 If applicant is applying for more than one exchange or if the applicant is a current member firm, the initial Application Fee is reduced from $2,000 to $1,000 for each additional exchange applied for.  \n\n3 The Additional Transfer Fee is only applicable to additional memberships purchased by the member firm.  Each additional seat required by the applicant will be charged an additional $300 transfer fee.   "]